Cogmind - Beta 14 @@@ ROGUE MODE // 2024.09.16 @ 14:50:12 Player: ZarZap Result: Self-destructed Performance ------------- Evolutions (2) 1000 Regions Visited (5) 1000 Robots Destroyed (21) 105 Value Destroyed (786) 786 Prototype IDs (0) 0 Alien Tech Used (0) 0 Bonus (50) 50 TOTAL SCORE: 2941 Bonus ------- Follower Combat Kills 50 Cogmind --------- Core Integrity 400/550 Matter 193/300 Energy 57/100 System Corruption 0% Temperature Cool (0) Movement Walking (190) Ox1 Location -8/Materials Parts ------- > --- POWER (1) -------- (None) > --- PROPULSION (3) --- Aluminum Leg Aluminum Leg > --- UTILITY (4) ------ Improved Heat Sink Large Storage Unit Seismic Detector > --- WEAPON (3) ------- Assault Rifle > --- INVENTORY (15) --- Ion Engine Aluminum Leg Peak State ------------ > --- POWER ------------ Light Ion Engine > --- PROPULSION ------- Aluminum Leg Aluminum Leg Aluminum Leg > --- UTILITY ---------- Heat Sink Improved Heat Sink Large Storage Unit Seismic Detector > --- WEAPON ----------- Assault Rifle Heavy Assault Rifle Shotgun > --- INVENTORY -------- Ion Engine Ion Engine Aluminum Leg Aluminum Leg Aluminum Leg Aluminum Leg Utility Shielding Small Laser Small Laser Light Cannon [Rating: 16] Favorites ----------- Power Light Ion Engine Engine Light Ion Engine Propulsion Aluminum Leg Leg Aluminum Leg Utility Large Storage Unit Device Improved Heat Sink Storage Large Storage Unit Protection Utility Shielding Weapon Assault Rifle Energy Gun Small Laser Energy Cannon Light EM Pulse Cannon Ballistic Gun Assault Rifle Ballistic Cannon Light Cannon Build | -11 -10 -10 -9 -9 -8 ------- Run | Yrd Mat Min Mat Min Mat Slots Evolved 4 | . . . 2 . 2 Power . | . . . . . . Propulsion 1 | . . . 1 . . Utility 2 | . . . 1 . 1 Weapon 1 | . . . . . 1 Parts Attached 43 | 6 5 . 9 11 12 Power 5 | 1 1 . 1 1 1 Engine 5 | 1 1 . 1 1 1 Core . | . . . . . . Reactor . | . . . . . . Propulsion 15 | 2 2 . 2 6 3 Treads . | . . . . . . Leg 15 | 2 2 . 2 6 3 Wheel . | . . . . . . Hover . | . . . . . . Flight . | . . . . . . Utility 6 | 1 1 . 2 . 2 Device 3 | . . . 2 . 1 Storage 2 | 1 1 . . . . Processor . | . . . . . . Hackware . | . . . . . . Protection 1 | . . . . . 1 Artifact . | . . . . . . Weapon 17 | 2 1 . 4 4 6 Energy Gun 5 | 1 . . 1 . 3 Energy Cannon 2 | . . . 1 1 . Ballistic Gun 8 | 1 . . 2 3 2 Ballistic Cannon 2 | . 1 . . . 1 Launcher . | . . . . . . Special Weapon . | . . . . . . Impact Weapon . | . . . . . . Slashing Weapon . | . . . . . . Piercing Weapon . | . . . . . . Special Melee Weapon . | . . . . . . Unidentified Prototypes . | . . . . . . Parts Lost 23 | . 1 . 1 6 15 Power 5 | . 1 . 1 1 2 Propulsion 7 | . . . . 3 4 Utility 2 | . . . . . 2 Weapon 9 | . . . . 2 7 Highest Loss Streak 15 | . 1 . 1 2 15 To Critical Strikes . | . . . . . . Average Slot Usage (%) 85 | . 82 85 80 90 86 Engine 9 | . 11 14 9 7 7 Leg 27 | . 28 28 29 27 22 Device 13 | . . . 8 22 22 Storage 11 | . 14 14 11 11 9 Energy Gun 5 | . 7 . 3 8 3 Energy Cannon 3 | . . . 3 7 . Ballistic Gun 11 | . 14 14 15 5 18 Ballistic Cannon 2 | . 6 14 . . . Peak Build Rating 16 | 6 7 6 14 14 16 Average Rating 9 | 4 5 6 9 12 13 On Entrance 7 | . 6 6 6 14 13 Naked Turns . | . . . . . . Heaviest Build 34 | 11 28 28 34 34 34 Greatest Support 30 | 20 20 20 30 30 30 Greatest Overweight (x) 3 | 3 1 1 1 3 2 Average Overweight (x) . | . . 1 . . . Largest Inventory Capacity 15 | 8 15 15 15 15 15 Average Capacity 14 | 7 14 15 15 15 15 Most Carried 13 | 2 5 5 9 13 12 Average Carried 7 | 1 3 5 7 9 8 Final Capacity 15 | 8 15 15 15 15 15 Final Carried 13 | 2 5 5 9 13 2 Class Distribution -------------------- 48% | Scavenger-Mutant 44% | Mutant 6% | Scavenger-Gunner Dominant Class ---------------- Mutant | -10/Materials Mutant | -10/Mines Mutant | -9/Materials Scavenger-Mutant | -9/Mines Scavenger-Gunner | -8/Materials Resources | -11 -10 -10 -9 -9 -8 ----------- Run | Yrd Mat Min Mat Min Mat Matter Collected 698 | 207 40 68 86 297 . Remotely . | . . . . . . Salvage Created 970 | . 168 . 232 471 99 Parts 50 | . 9 . 16 18 7 Haulers Intercepted . | . . . . . . Recyclers Shooed 1 | . . . 1 . . Parts Field Recycled . | . . . . . . Retrieved Matter . | . . . . . . Parts Self-Destructed . | . . . . . . Prevented . | . . . . . . Kills | -11 -10 -10 -9 -9 -8 ------- Run | Yrd Mat Min Mat Min Mat Combat Hostiles Destroyed 18 | . 2 . 5 9 2 Guns 7 | . 1 . 3 2 1 Cannons 9 | . 1 . 2 5 1 AOE 2 | . . . . 2 . Classes Destroyed 6 | . 3 . 1 1 1 Recycler 2 | . 1 . . 1 . Watcher 1 | . 1 . . . . Grunt 13 | . 2 . 3 8 . Duelist 1 | . . . . 1 . Sentry 2 | . . . 2 . . Specialist 2 | . . . . . 2 Best Kill Streak 4 | . 4 . 2 3 2 Combat Bots Only 3 | . 2 . 2 3 2 Max Kills in Single Turn 2 | . 1 . 1 2 1 Gunslinging . | . . . . . . Exploded 2 | . . . . 2 . Melee . | . . . . . . Uniques/NPCs Destroyed . | . . . . . . Combat | -11 -10 -10 -9 -9 -8 -------- Run | Yrd Mat Min Mat Min Mat Hostile Shots Fired 221 | . 37 . 28 59 97 Missed 71 | . 12 . 10 11 38 Damage Taken 2588 | . 398 . 251 700 1239 Core 325 | . 63 . 26 86 150 Absorbed by Shields . | . . . . . . Redirected to Shielding 26 | . . . . . 26 Core Remaining (%) 82 | 100 . 74 . 72 . Volleys Fired 79 | . 15 . 21 27 16 Largest 3 | . 2 . 2 2 3 Hottest 128 | . 55 . 96 96 128 Shots Fired 154 | . 30 . 35 54 35 Gun 110 | . 15 . 31 32 32 Cannon 44 | . 15 . 4 22 3 Launcher . | . . . . . . Special . | . . . . . . Kinetic 83 | . 30 . 29 5 19 Thermal 45 | . . . 2 27 16 Explosive . | . . . . . . Electromagnetic 26 | . . . 4 22 . Robot Hit Streak 12 | . 5 . 12 8 10 Robot Miss Streak 8 | . 8 . 3 3 2 Penetration Max . | . . . . . . Secondary Targets 1 | . . . . . 1 Max Gunslinging Chain 1 | . . . . . 1 Shots Hit Robots 104 | . 15 . 26 36 27 Core Hits 47 | . 7 . 9 20 11 Critical Kills . | . . . . . . Critical Parts Destroyed 1 | . . . . . 1 Critical Strikes 2 | . 1 . . . 1 Destroy 1 | . . . . . 1 Blast 1 | . 1 . . . . Melee Attacks . | . . . . . . Impact . | . . . . . . Slashing . | . . . . . . Piercing . | . . . . . . Sneak Attacks . | . . . . . . Combat Hostiles . | . . . . . . Follow-up Attacks . | . . . . . . Damage Inflicted 1825 | . 233 . 471 714 407 Guns 1050 | . 102 . 339 257 352 Cannons 636 | . 131 . 90 360 55 Explosions 139 | . . . 42 97 . Melee . | . . . . . . Ramming . | . . . . . . Kinetic 875 | . 233 . 327 71 244 Thermal 500 | . . . 54 283 163 Explosive . | . . . . . . Electromagnetic 450 | . . . 90 360 . Impact . | . . . . . . Slashing . | . . . . . . Piercing . | . . . . . . Highest Corruption 1 | . 1 1 . . . Average Corruption 1 | . 1 1 . . . Corruption Purged . | . . . . . . Corruption Blocked . | . . . . . . Effects 1 | . . 1 . . . Message Errors 1 | . . 1 . . . Overload Shots . | . . . . . . Overflow Damage 31 | . . . 31 . . Projectiles 19 | . . . 19 . . Explosions 12 | . . . 12 . . Melee . | . . . . . . Knockbacks 3 | . 3 . . . . Impact . | . . . . . . Kinetic 2 | . 2 . . . . Secondary 1 | . 1 . . . . Self-Inflicted Damage . | . . . . . . Shots . | . . . . . . Rammed . | . . . . . . Targets Rammed . | . . . . . . Kicked . | . . . . . . Crushed . | . . . . . . Highest Temperature 51 | . 51 . 13 . 15 Average Temperature 20 | . 25 . 13 . 6 Received Heat Transfer 819 | . 201 . 135 285 198 Siege Activations . | . . . . . . Robots Corrupted . | . . . . . . Combat Hostiles . | . . . . . . Parts Fried 1 | . . . . 1 . Impact Corruptions . | . . . . . . Robots Melted . | . . . . . . Combat Hostiles . | . . . . . . Parts Melted 1 | . . . . 1 . Heat Transferred 1009 | . . . 75 525 409 Parts Sabotaged . | . . . . . . Parts Stolen . | . . . . . . Parts Stripped . | . . . . . . Power Chain Reactions 2 | . . . 1 1 . Alert | -11 -10 -10 -9 -9 -8 ------- Run | Yrd Mat Min Mat Min Mat Peak Influence 233 | . 67 25 150 233 40 Initial 58 | . . 25 9 58 40 Average 75 | . 22 25 55 142 24 Maximum Alert Level 1 | . . . . 1 . Low Security (%) 87 | 100 100 100 100 69 100 Level 1 12 | . . . . 30 . Level 2 . | . . . . . . Level 3 . | . . . . . . Level 4 . | . . . . . . Level 5 . | . . . . . . High Security . | . . . . . . Max Security . | . . . . . . Squads Dispatched 2 | . . . . . 2 Investigation . | . . . . . . Extermination . | . . . . . . Reinforcement 2 | . . . . . 2 Assault . | . . . . . . Garrison . | . . . . . . Intercept . | . . . . . . Searches Triggered . | . . . . . . Construction Impeded . | . . . . . . Haulers Reinforced . | . . . . . . Active Scanning Responses . | . . . . . . Cargo Convoy Interrupts . | . . . . . . Stealth | -11 -10 -10 -9 -9 -8 --------- Run | Yrd Mat Min Mat Min Mat Distress Signals 1 | . . . 1 . . Communications Jammed . | . . . . . . Distress Signals . | . . . . . . Times Spotted 31 | . 5 . 5 13 8 Peak Tracking Total 4 | . 4 . 3 3 4 Tactical Retreats 2 | . . . . 2 . Traps | -11 -10 -10 -9 -9 -8 ------- Run | Yrd Mat Min Mat Min Mat Traps Triggered 1 | . 1 . . . . Indirectly . | . . . . . . Trap Hack Attempts . | . . . . . . Triggered . | . . . . . . Disarmed . | . . . . . . Reprogrammed . | . . . . . . Reused . | . . . . . . Traps Extracted . | . . . . . . Installed . | . . . . . . Triggered . | . . . . . . Machines | -11 -10 -10 -9 -9 -8 ---------- Run | Yrd Mat Min Mat Min Mat Machines Disabled . | . . . . . . Max in Single Turn . | . . . . . . Machines Repaired . | . . . . . . Machines Dismantled . | . . . . . . Machines Sabotaged . | . . . . . . Overloaded Fab Kills . | . . . . . . Hacking | -11 -10 -10 -9 -9 -8 --------- Run | Yrd Mat Min Mat Min Mat Machines Accessed . | . . . . . . Terminals . | . . . . . . Fabricators . | . . . . . . Repair Stations . | . . . . . . Recycling Units . | . . . . . . Scanalyzers . | . . . . . . Garrison Access . | . . . . . . Total Hacks . | . . . . . . Successful . | . . . . . . Failed . | . . . . . . Catastrophic . | . . . . . . Database Lockouts . | . . . . . . Manual . | . . . . . . Terminals . | . . . . . . Fabricators . | . . . . . . Repair Stations . | . . . . . . Recycling Units . | . . . . . . Scanalyzers . | . . . . . . Garrison Access . | . . . . . . Terminal Hacks . | . . . . . . Fabricator Hacks . | . . . . . . Repair Station Hacks . | . . . . . . Recycling Unit Hacks . | . . . . . . Scanalyzer . | . . . . . . Garrison Access Hacks . | . . . . . . Unauthorized Hacks . | . . . . . . Terminals . | . . . . . . Fabricators . | . . . . . . Repair Stations . | . . . . . . Recycling Units . | . . . . . . Scanalyzers . | . . . . . . Garrison Access . | . . . . . . Data Cores Recovered . | . . . . . . Used . | . . . . . . Hacking Detections . | . . . . . . Full Trace Events . | . . . . . . Feedback Events . | . . . . . . Feedback Blocked . | . . . . . . Robot Schematics Acquired . | . . . . . . Robots Built . | . . . . . . Authchips . | . . . . . . Time . | . . . . . . Total Robot Build Rating . | . . . . . . Part Schematics Acquired . | . . . . . . Parts Built . | . . . . . . Authchips . | . . . . . . Time . | . . . . . . Total Part Build Rating . | . . . . . . Parts Repaired . | . . . . . . Time . | . . . . . . Parts Recycled . | . . . . . . Recycled Matter . | . . . . . . Retrieved Matter . | . . . . . . Retrieved Components . | . . . . . . Parts Scanalyzed . | . . . . . . Part Schematics Acquired . | . . . . . . Parts Damaged . | . . . . . . Bothacking | -11 -10 -10 -9 -9 -8 ------------ Run | Yrd Mat Min Mat Min Mat Used RIF Installer . | . . . . . . Robots Hacked . | . . . . . . Non-combat . | . . . . . . Combat . | . . . . . . Robot Hacks Applied . | . . . . . . Relay Couplers Released . | . . . . . . Fabnet Peak Effective % . | . . . . . . Robots Rewired . | . . . . . . Allies Hacked . | . . . . . . Hacks Repelled . | . . . . . . Allies | -11 -10 -10 -9 -9 -8 -------- Run | Yrd Mat Min Mat Min Mat Total Allies 3 | . . . . 3 . Largest Group 3 | . . . . 3 2 Highest-Rated Group 40 | . . . . 40 32 Highest-Rated Ally 16 | . . . . 16 16 Total Orders . | . . . . . . Ally Attacks 12 | . . . . 5 7 Total Damage 171 | . . . . 58 113 Kills 2 | . . . . 2 . Allies Corrupted . | . . . . . . Allies Melted . | . . . . . . Intel | -11 -10 -10 -9 -9 -8 ------- Run | Yrd Mat Min Mat Min Mat Robot Analysis Total . | . . . . . . Derelict Logs Recovered 2 | . . . . 2 . Drone Launches . | . . . . . . Drone Recoveries . | . . . . . . Exploration | -11 -10 -10 -9 -9 -8 ------------- Run | Yrd Mat Min Mat Min Mat Turns Passed 1632 | 57 316 126 300 649 184 Spaces Moved 774 | 34 137 67 126 344 66 Core 9 | 9 . . . . . Treads . | . . . . . . Legs 765 | 25 137 67 126 344 66 Wheels . | . . . . . . Hover . | . . . . . . Flight . | . . . . . . Fastest Speed 50 | 50 120 190 120 120 120 Average Speed 166 | 136 187 190 172 151 185 Slowest Speed 330 | 200 190 190 190 330 260 Overloaded Moves . | . . . . . . Propulsion Burnouts . | . . . . . . Robots Hopped . | . . . . . . Cave-ins Triggered . | . . . . . . Exploration Rate (%) 25 | 3 35 16 12 79 9 Regions Visited 5 Branch Regions 2 Pre-discovered Areas 1 | . . . . 1 . Known Exits Taken . | . . . . . . Unknown Exits Taken 5 | 1 1 1 1 1 . Scrap Searched 2 | . . 1 . 1 . Spaces Dug . | . . . . . . Terrain Destroyed 11 | . . . 6 5 . Melee . | . . . . . . Projectile . | . . . . . . AOE 11 | . . . 6 5 . Terrain Rammed . | . . . . . . Walls Destroyed . | . . . . . . Machines Disabled . | . . . . . . Actions | -11 -10 -10 -9 -9 -8 --------- Run | Yrd Mat Min Mat Min Mat Total 955 | 41 165 66 170 415 98 Wait 50 | . 7 . 13 30 . Move 769 | 33 136 66 125 343 66 Hop . | . . . . . . Pick Up 10 | 2 1 . 2 4 1 Fast Attach 18 | 6 2 . 4 3 3 Attach 12 | . . . . 3 9 Detach . | . . . . . . Swap 13 | . 3 . 5 5 . Drop 4 | . 1 . . . 3 Fire 79 | . 15 . 21 27 16 Melee . | . . . . . . Ram . | . . . . . . Kick . | . . . . . . Crush . | . . . . . . Escape Stasis . | . . . . . . Rewire . | . . . . . . Trap . | . . . . . . Miscellaneous . | . . . . . . Route ------- -11/Scrapyard -10/Materials -10/Mines -9/Materials -9/Mines -8/Materials History --------- Turn | Location | Event 17 | -11/Scrapyard | Discovered new exit (range 15) 58 | -11/Scrapyard | Entered Materials 307 | -10/Materials | Build established: Mutant 363 | -10/Materials | Discovered new exit (range 7) 374 | -10/Materials | Entered Mines 399 | -10/Mines | Met a Derelict bent on vengeance 458 | -10/Mines | Discovered new exit (range 5) 500 | -10/Mines | Entered Materials 500 | -9/Materials | Evolved 2 slots: Propulsion x1, Utility x1 758 | -9/Materials | Discovered new exit (range 16) 800 | -9/Materials | Entered Mines 973 | -9/Mines | Build established: Scavenger-Mutant 1026 | -9/Mines | Learned location of Storage (-9) 1263 | -9/Mines | Learned Materials terminal intel 1282 | -9/Mines | Assisted by bots powering up and referring to "LRC-V3" 1442 | -9/Mines | Discovered new exit (range 6) 1449 | -9/Mines | Entered Materials 1449 | -8/Materials | Accompanied by 2 allies 1449 | -8/Materials | Evolved 2 slots: Utility x1, Weapon x1 1450 | -8/Materials | Loaded intel: 12 terminal locations 1633 | -8/Materials | Self-destructed Last Messages --------------- 01587_ Hvy. Assault Rifle destroyed. 01587_ Knocked back. 01588_ K-01 Serf collects debris. 01593_ Knocked back. 01596_ K-01 Serf collects debris. 01599_ Terminal disabled. 01600_ K-01 Serf collects debris. 01601_ G-47 Trooper suffers critical hit (Destroy). 01601_ Destroyed Particle Gun. 01602_ Particle Gun destroyed. 01602_ Knocked back. 01603_ K-01 Serf collects debris. 01611_ Aluminum Leg destroyed. 01611_ Utility Shielding destroyed. 01611_ Critical hit (Blast). 01611_ Knocked back. 01612_ Sml. Laser destroyed. 01613_ Aluminum Leg destroyed. 01617_ Ion Engine destroyed. 01617_ Knocked back. Map ----- +----------------------------------------------------+ | ???????????????????# # = # "R #??? | | ???????????????????# + + """ #??? | | ???????????????????#"" # # #??? | | ???????????????????#"Y # # #??? | | ???????????????????#"" # #?######??? | | ???????????????????# # #########?? | | ???????????????????###### # #?? | | ????????????????????????# # = #?? | | ????????????????????????# + ! #?? | | ????????????????????????# # | #?? | | ????????????????##??????# # #?? | | ????????????????# ?????## #########?? | | ????????????????######## #????????? | | ????????????????# % #????????? | | ????????????????#% %% #????????? | | ????????????????#|%= %% #????????? | | ????????????????#!% #### #????????? | | ????????????????#%!!#####;H####???????? | | ????????????????#=%["# !g #???????? | | ????????????????#!!["# #???????? | | ????????????????# = ## g #???????? | | ????????????????# ## """ #???????? | | ????????????????#%=%## """""#???????? | | ???????????????? = # """""#???????? | | ???????????????? ! # """""#???????? | | ??????????????? # @""" #???????? | | ??????????????? # ! #???????? | | ??????????????## ##########???????? | | ???????????????##### ?????????????????? | | ???????????????????? ?????????????????? | | ???????????????????? ?????????????????? | | ???????????????????? ?????????????????? | | ??????????????????????????????????????? | | ??????????????????????????????????????? | | ??????????????????????????????????????? | | ??????????????????????????????????????? | | ??????????????????????????????????????? | | ??????????????????????????????????????? | | ??????????????????????????????????????? | | ?????????????????????????????????T????? | | ??????????????????????????????????????? | | ??????????????????????????????????????? | | ??????????????????????????????????????? | | ??????????????????????????????????????? | | ??????????????????????????????????????? | | ??????????????????????????????????????? | | ??????????????????????????????????????? | | ??????????????????????????????????????? | | ??????????????????????????????????????? | | ??????????????????????????????????????? | +----------------------------------------------------+ Best States ------------- Heat Dissipation 55 Energy Generation 12 Energy Capacity 265 Matter Stores 300 Matter Capacity 300 Sight Range 16 Terrain Scan Density 10 Utility Shielding 33 Evasion (%) 55 Item Schematics ----------------- None Robot Schematics ------------------ None Fabricated ------------ Nothing Alien Tech Used ----------------- None Achievements -------------- None Challenges ------------ None Game ------ Seed TrapCompanionTriangulator Manual? 0 Play Time 00:12:13 Cumulative 18.3 hours Start 2024.09.16 @ 14:38:55 End 2024.09.16 @ 14:50:12 Sessions 1 Manual Loads 0 Difficulty Rogue Special Mode None Game No. 73 Rogue 73 Adventurer 0 Explorer 0 Win Type - Total 0 Types 0/0/0/0/0/0/0/0/0 Lore% 10 Gallery% 23 Achievement% 15 Wizard Run 0 Options --------- Layout 2 ASCII 0 Keyboard 0 Movement Mouse Keybinds 0 Fullscreen 1 Font 16/SmallcapsGlow Map View 55x47 Zoom Use 0% Tactical HUD 1 Map Filters NONE Filters NONE Steam 1 RUN: 6891b4fa-7b66-47b8-9c04-b343f0babfc6